[Event "IIFL WEALTH VI Under-13 2021"]
[Site "Mumbai"]
[Date "2022.01.07"]
[Round "9.2"]
[White "Adireddy Arjun"]
[Black "Bagwe Gaurang"]
[Result "0-1"]
[ECO "B76"]
[WhiteElo "1658"]
[BlackElo "1850"]
[Annotator "NA RC"]
[PlyCount "83"]
[EventDate "2021.12.30"]
[EventType "swiss"]
[EventCountry "IND"]
[SourceTitle "playchess.com"]
[Source "ChessBase"]
[SourceQuality "1"]
[TimeControl "5400+30"]

1. e4 {[%emt 0:00:05]} c5 {[%emt 0:00:05]} 2. Nf3 {[%emt 0:00:13]} d6 {[%emt 0:00:05]} 3. d4 {[%emt 0:00:05]} cxd4 {[%emt 0:00:03]} 4. Nxd4 {[%emt 0:00:07]} Nf6 {[%emt 0:00:03]} 5. Nc3 {[%emt 0:00:07]} g6 {[%emt 0:00:02]} 6. Be3 {[%emt 0:00:14]} Bg7 {[%emt 0:00:02]} 7. f3 {[%emt 0:00:10]} O-O {[%emt 0:00:06]} 8. Qd2 {[%emt 0:00:06]} Nc6 {[%emt 0:00:03]} 9. O-O-O {[%emt 0:00:08]} d5 {[%emt 0:00:16]} 10. exd5 {[%emt 0:00:41]} Nxd5 {[%emt 0:00:04]} 11. Nxc6 {[%emt 0:00:09]} bxc6 {[%emt 0:00:05]} 12. Nxd5 {[%emt 0:00:11]} cxd5 {[%emt 0:00:20]} 13. Qxd5 {[%emt 0:00:12]} Qc7 {[%emt 0:00:16]} 14. Qc5 {[%emt 0:00:05]} Qb7 {[%emt 0:00:57]} 15. b3 {[%emt 0:00:05]} Bf5 {[%emt 0:02:00]} 16. Bd3 {[%emt 0:00:08]} Rac8 {[%emt 0:13:08]} 17. Qa5 {[%emt 0:02:08]} Rc3 {[%emt 0:08:42]} 18. Bxf5 {[%emt 0:00:07]} Rxe3 {[%emt 0:00:40]} 19. Be4 {[%emt 0:00:08]} Qb8 {[%emt 0:00:14]} 20. g3 {[%emt 0:00:16]} Rc8 {[%emt 0:02:56]} 21. Rd7 {[%emt 0:11:01]} f5 {[%emt 0:19:59]} 22. Bb7 {[%emt 0:12:26]} Bc3 {[%emt 0:11:02]} 23. Qd5+ {[%emt 0:23:39]} e6 {[%emt 0:05:49]} 24. Qd6 {[%emt 0:03:23]} Qxd6 {[%emt 0:00:18]} 25. Rxd6 {[%emt 0:00:06]} Rc7 {[%emt 0:00:33]} 26. Ba6 {[%emt 0:00:14]} e5 {[%emt 0:05:38]} 27. Rd3 {[%emt 0:04:10]} Rxd3 {[%emt 0:00:41]} 28. cxd3 {[%emt 0:00:06]} Bd4+ {[%emt 0:00:16]} 29. Bc4+ {[%emt 0:00:15]} Kg7 {[%emt 0:00:08]} 30. Kd2 {[%emt 0:00:30]} h5 {[%emt 0:00:09]} 31. Rf1 {[%emt 0:05:01]} h4 {[%emt 0:00:31]} 32. Ke2 {[%emt 0:06:01]} Kf6 {[%emt 0:00:19]} 33. gxh4 {[%emt 0:06:18]} Rh7 {[%emt 0:00:06]} 34. Rh1 {[%emt 0:00:08]} Rxh4 {[%emt 0:00:35]} 35. Kf1 {[%emt 0:00:14]} Kg5 {[%emt 0:00:09]} 36. Kg2 {[%emt 0:00:34]} Kf4 {[%emt 0:00:06]} 37. Re1 {[%emt 0:00:47]} Rh5 {[%emt 0:00:28]} 38. Bd5 {[%emt 0:00:29]} Rg5+ {[%emt 0:00:49]} 39. Kh1 {[%emt 0:05:16]} Bf2 {[%emt 0:00:16]} 40. h4 {[%emt 0:01:23]} Rh5 {[%emt 0:00:03]} 41. Re2 Kg3 42. b4 0-1

[Event "IIFL WEALTH VI Under-13 2021"]
[Site "Mumbai"]
[Date "2022.01.07"]
[Round "9.3"]
[White "Jaiveer Mahendru"]
[Black "Gaikwad Manas"]
[Result "0-1"]
[ECO "B90"]
[WhiteElo "1721"]
[BlackElo "1243"]
[Annotator "NA RC"]
[PlyCount "66"]
[EventDate "2021.12.30"]
[EventType "swiss"]
[EventCountry "IND"]
[SourceTitle "playchess.com"]
[Source "ChessBase"]
[SourceQuality "1"]
[TimeControl "5400+30"]

1. e4 {[%emt 0:00:03]} c5 {[%emt 0:00:40]} 2. Nf3 {[%emt 0:00:04]} d6 {[%emt 0:00:00]} 3. d4 cxd4 {[%emt 0:00:20]} 4. Nxd4 {[%emt 0:00:09]} Nf6 {[%emt 0:00:33]} 5. Nc3 {[%emt 0:00:04]} a6 {[%emt 0:00:39]} 6. Be3 {[%emt 0:00:07]} e5 {[%emt 0:00:26]} 7. Nb3 {[%emt 0:00:04]} Be6 {[%emt 0:01:10]} 8. f3 {[%emt 0:00:07]} Be7 {[%emt 0:00:05]} 9. Qd2 {[%emt 0:00:04]} Nbd7 {[%emt 0:00:06]} 10. O-O-O {[%emt 0:00:06]} b5 {[%emt 0:00:45]} 11. g4 {[%emt 0:00:24]} b4 {[%emt 0:01:03]} 12. Nd5 {[%emt 0:03:17]} Bxd5 {[%emt 0:00:52]} 13. exd5 {[%emt 0:00:03]} Nb6 {[%emt 0:00:41]} 14. Bxb6 {[%emt 0:01:42]} Qxb6 {[%emt 0:00:12]} 15. Qe2 {[%emt 0:01:19]} O-O {[%emt 0:01:18]} 16. f4 {[%emt 0:02:03]} a5 {[%emt 0:02:22]} 17. g5 {[%emt 0:09:40]} Nd7 {[%emt 0:00:53]} 18. h4 {[%emt 0:02:08]} a4 {[%emt 0:01:51]} 19. Na1 {[%emt 0:00:50]} a3 {[%emt 0:08:08]} 20. b3 {[%emt 0:04:38]} exf4 {[%emt 0:00:49]} 21. Qe4 {[%emt 0:09:07]} Ne5 {[%emt 0:01:37]} 22. Qxf4 {[%emt 0:01:45]} f6 {[%emt 0:00:12]} 23. g6 {[%emt 0:09:42]} Nxg6 {[%emt 0:00:15]} 24. Qg3 {[%emt 0:00:30]} f5 {[%emt 0:00:57]} 25. c4 {[%emt 0:01:26]} f4 {[%emt 0:00:55]} 26. Qh3 {[%emt 0:01:33]} Bf6 {[%emt 0:06:32]} 27. Nc2 {[%emt 0:00:22]} Rae8 {[%emt 0:00:10]} 28. Bd3 {[%emt 0:02:54]} Ne5 {[%emt 0:01:07]} 29. Bf5 {[%emt 0:00:46]} f3 {[%emt 0:02:16]} 30. Rhf1 {[%emt 0:03:55]} Nxc4 {[%emt 0:02:22]} 31. bxc4 {[%emt 0:00:13]} b3 {[%emt 0:00:08]} 32. axb3 {[%emt 0:00:17]} Bb2+ {[%emt 0:00:13]} 33. Kb1 {[%emt 0:01:11]} Qxb3 {[%emt 0:00:17]} 0-1

[Event "IIFL WEALTH VI Under-13 2021"]
[Site "Mumbai"]
[Date "2022.01.07"]
[Round "9.4"]
[White "Bharadia Yash"]
[Black "Jain, Kushagra"]
[Result "1-0"]
[ECO "B90"]
[WhiteElo "1675"]
[BlackElo "1468"]
[Annotator "NA RC"]
[PlyCount "71"]
[EventDate "2021.12.30"]
[EventType "swiss"]
[EventCountry "IND"]
[SourceTitle "playchess.com"]
[Source "ChessBase"]
[SourceQuality "1"]
[TimeControl "5400+30"]

1. e4 {[%emt 0:00:03]} c5 {[%emt 0:00:04]} 2. Nf3 {[%emt 0:00:10]} d6 {[%emt 0:00:03]} 3. d4 {[%emt 0:00:07]} cxd4 {[%emt 0:00:05]} 4. Nxd4 {[%emt 0:00:11]} Nf6 {[%emt 0:00:02]} 5. Nc3 {[%emt 0:00:11]} a6 {[%emt 0:00:06]} 6. Be3 {[%emt 0:00:05]} e5 {[%emt 0:00:14]} 7. Nb3 {[%emt 0:00:08]} Be7 {[%emt 0:00:17]} 8. f3 {[%emt 0:00:03]} Be6 {[%emt 0:00:06]} 9. Qd2 {[%emt 0:00:15]} Nbd7 {[%emt 0:00:04]} 10. g4 {[%emt 0:00:18]} O-O {[%emt 0:00:17]} 11. O-O-O {[%emt 0:01:17]} b5 {[%emt 0:00:15]} 12. g5 {[%emt 0:00:18]} b4 {[%emt 0:00:39]} 13. Ne2 {[%emt 0:00:27]} Ne8 {[%emt 0:01:36]} 14. Kb1 {[%emt 0:00:48]} a5 {[%emt 0:03:40]} 15. h4 {[%emt 0:04:06]} Nc7 {[%emt 0:13:01]} 16. f4 {[%emt 0:03:22]} exf4 {[%emt 0:08:35]} 17. Nxf4 {[%emt 0:01:03]} Ne5 {[%emt 0:00:36]} 18. Nd4 {[%emt 0:03:15]} Qd7 {[%emt 0:04:13]} 19. Be2 {[%emt 0:04:03]} Rfb8 {[%emt 0:03:48]} 20. Rdg1 {[%emt 0:08:50]} a4 {[%emt 0:02:27]} 21. h5 {[%emt 0:02:28]} b3 {[%emt 0:08:07]} 22. cxb3 {[%emt 0:01:06]} axb3 {[%emt 0:01:10]} 23. a3 {[%emt 0:00:04]} d5 {[%emt 0:11:46]} 24. g6 {[%emt 0:13:10]} Bxa3 {[%emt 0:10:06]} 25. gxf7+ {[%emt 0:36:42]} Nxf7 {[%emt 0:18:10]} 26. bxa3 {[%emt 0:06:22]} Rxa3 {[%emt 0:00:40]} 27. Rxg7+ {[%emt 0:04:26]} Kxg7 {[%emt 0:01:58]} 28. Qb2 {[%emt 0:00:48]} Ne5 {[%emt 0:03:27]} 29. Qxa3 {[%emt 0:00:58]} Ra8 {[%emt 0:01:08]} 30. Qb2 {[%emt 0:00:35]} Kg8 {[%emt 0:03:56]} 31. Ndxe6 {[%emt 0:00:27]} Nxe6 {[%emt 0:00:06]} 32. Qxe5 {[%emt 0:00:26]} b2 {[%emt 0:00:00]} 33. Rg1+ {[%emt 0:00:00]} Ng7 {[%emt 0:00:00]} 34. Rxg7+ {[%emt 0:00:13]} Qxg7 {[%emt 0:00:04]} 35. Qxd5+ {[%emt 0:00:08]} Qf7 {[%emt 0:00:11]} 36. Qxa8+ {[%emt 0:00:13]} 1-0

[Event "IIFL WEALTH VI Under-13 2021"]
[Site "Mumbai"]
[Date "2022.01.07"]
[Round "9.5"]
[White "Bhoir Paras Dilip"]
[Black "Midilesh MS"]
[Result "1-0"]
[ECO "B40"]
[WhiteElo "1236"]
[BlackElo "1671"]
[Annotator "NA RC"]
[PlyCount "116"]
[EventDate "2021.12.30"]
[EventType "swiss"]
[EventCountry "IND"]
[SourceTitle "playchess.com"]
[Source "ChessBase"]
[SourceQuality "1"]
[TimeControl "5400+30"]

1. e4 c5 {[%emt 0:00:59]} 2. Nf3 {[%emt 0:00:10]} e6 {[%emt 0:00:06]} 3. c3 {[%emt 0:01:26]} a6 {[%emt 0:01:21]} 4. d4 {[%emt 0:01:11]} cxd4 {[%emt 0:00:16]} 5. cxd4 {[%emt 0:00:49]} d6 {[%emt 0:00:09]} 6. Bd3 {[%emt 0:01:44]} Nd7 {[%emt 0:07:04]} 7. Nc3 {[%emt 0:01:51]} b5 {[%emt 0:00:11]} 8. a3 {[%emt 0:00:42]} Bb7 {[%emt 0:00:32]} 9. Bf4 {[%emt 0:02:30]} Ngf6 {[%emt 0:02:36]} 10. Rc1 {[%emt 0:01:14]} Be7 {[%emt 0:09:55]} 11. O-O {[%emt 0:02:44]} O-O {[%emt 0:01:58]} 12. Qe2 {[%emt 0:02:51]} Re8 {[%emt 0:10:21]} 13. Rfd1 {[%emt 0:10:45]} Nb6 {[%emt 0:04:49]} 14. Nb1 {[%emt 0:07:56]} Nfd7 {[%emt 0:04:17]} 15. h4 {[%emt 0:04:24]} f6 {[%emt 0:21:14]} 16. Nbd2 {[%emt 0:03:14]} Nf8 {[%emt 0:05:16]} 17. Nf1 {[%emt 0:01:51]} Qd7 {[%emt 0:02:55]} 18. e5 {[%emt 0:13:16]} f5 {[%emt 0:07:18]} 19. Bg3 {[%emt 0:07:20]} d5 {[%emt 0:00:44]} 20. h5 {[%emt 0:03:03]} Qd8 {[%emt 0:06:15]} 21. Bf4 {[%emt 0:01:22]} g5 {[%emt 0:07:08]} 22. hxg6 {[%emt 0:03:22]} hxg6 {[%emt 0:00:14]} 23. g4 {[%emt 0:00:31]} g5 {[%emt 0:05:33]} 24. Bd2 {[%emt 0:00:17]} f4 {[%emt 0:00:39]} 25. Ba5 {[%emt 0:01:13]} Rb8 26. a4 {[%emt 0:01:51]} bxa4 {[%emt 0:00:54]} 27. Bxa6 {[%emt 0:00:23]} Ra8 {[%emt 0:00:43]} 28. Bxb7 {[%emt 0:00:19]} Rxa5 {[%emt 0:00:00]} 29. Bc6 {[%emt 0:00:18]} Nfd7 {[%emt 0:00:10]} 30. Kg2 {[%emt 0:01:42]} Kg7 {[%emt 0:00:36]} 31. N1d2 {[%emt 0:00:43]} Rh8 {[%emt 0:01:14]} 32. Qd3 {[%emt 0:03:29]} Nf8 {[%emt 0:00:22]} 33. Rh1 {[%emt 0:02:01]} Rxh1 {[%emt 0:00:08]} 34. Rxh1 {[%emt 0:00:06]} Ng6 {[%emt 0:00:05]} 35. Kf1 {[%emt 0:02:59]} a3 {[%emt 0:00:23]} 36. bxa3 Rxa3 {[%emt 0:00:07]} 37. Qb1 {[%emt 0:00:47]} Qc7 {[%emt 0:01:25]} 38. Rh7+ {[%emt 0:01:31]} Kxh7 {[%emt 0:00:32]} 39. Be8 {[%emt 0:00:04]} Ra1 {[%emt 0:00:54]} 40. Qxa1 {[%emt 0:02:18]} Kg7 {[%emt 0:00:33]} 41. Kg2 {[%emt 0:02:09]} Qc8 {[%emt 0:00:32]} 42. Bxg6 {[%emt 0:00:09]} Kxg6 {[%emt 0:00:01]} 43. Qb1+ {[%emt 0:00:08]} Kg7 {[%emt 0:00:27]} 44. Qxb6 {[%emt 0:00:05]} Kf7 {[%emt 0:00:26]} 45. Nb3 {[%emt 0:00:48]} Kg7 {[%emt 0:00:52]} 46. Nc5 {[%emt 0:00:17]} Kf7 {[%emt 0:00:02]} 47. Qb7 {[%emt 0:00:21]} Qxb7 {[%emt 0:00:35]} 48. Nxb7 {[%emt 0:00:06]} Kg6 {[%emt 0:00:14]} 49. Kf1 {[%emt 0:00:14]} Kf7 {[%emt 0:00:19]} 50. Ke2 {[%emt 0:00:08]} Kg6 {[%emt 0:00:02]} 51. Kd3 {[%emt 0:00:31]} Kf7 {[%emt 0:00:02]} 52. Kc3 {[%emt 0:00:24]} Kg6 {[%emt 0:00:02]} 53. Kb3 {[%emt 0:00:35]} Kf7 {[%emt 0:00:05]} 54. Ka4 {[%emt 0:00:06]} Kg6 {[%emt 0:00:05]} 55. Kb5 {[%emt 0:00:09]} Kf7 {[%emt 0:00:02]} 56. Kc6 {[%emt 0:00:09]} Kg7 {[%emt 0:00:12]} 57. Kd7 {[%emt 0:00:08]} Kf8 {[%emt 0:00:03]} 58. Nd6 {[%emt 0:00:07]} Bxd6 {[%emt 0:00:08]} 1-0